Cogmind - Beta 9.6 @@@ ROGUE MODE // 2020.06.02 @ 22:50:12 Player: Demise Result: Destroyed by 8R-AWN with 8R-AWN's Boregun Performance ------------- Evolutions (0) 0 Regions Visited (3) 600 Robots Destroyed (33) 165 Value Destroyed (595) 595 Prototype IDs (10) 200 Alien Tech Used (0) 0 Bonus (34) 34 TOTAL SCORE: 1594 Bonus ------- Follower Combat Kills 85 Friendly Fire -51 Cogmind --------- Core Integrity 0/250 Matter 217/300 Energy 38/250 System Corruption 1% Temperature Cool (20) Movement Core (1450) Ox28 Location -10/Exiles Parts ------- > --- POWER (1) -------- Ion Engine > --- PROPULSION (2) --- (None) > --- UTILITY (2) ------ Humpback > --- WEAPON (2) ------- Datajack Mining Laser > --- INVENTORY (24) --- Light Ion Engine Light Ion Engine Light Nuclear Core Aluminum Leg Improved Heat Sink Medium Storage Unit Medium Storage Unit Medium Storage Unit Large Storage Unit Large Storage Unit Large Storage Unit High-capacity Storage Unit High-capacity Storage Unit High-capacity Matter Pod (200) High-capacity Matter Pod (170) Structural Scanner Visual Processing Unit Peak State ------------ > --- POWER ------------ Light Nuclear Core > --- PROPULSION ------- Aluminum Leg Aluminum Leg > --- UTILITY ---------- High-capacity Storage Unit High-capacity Storage Unit > --- WEAPON ----------- Light Assault Rifle Light Assault Rifle > --- INVENTORY -------- Ion Engine Light Ion Engine Light Ion Engine Light Nuclear Core Reinforced Deuterium Engine Fission Core Aluminum Leg Improved Heat Sink Medium Storage Unit Large Storage Unit Large Storage Unit Structural Scanner Visual Processing Unit Particle Gun Light Assault Rifle Light Assault Rifle Grenade Launcher Datajack Mining Laser Mining Claw [Rating: 12] Favorites ----------- Power Ion Engine Engine Ion Engine Power Core Light Nuclear Core Propulsion Light Treads Treads Light Treads Leg Aluminum Leg Utility High-capacity Storage Unit Device Structural Scanner Storage High-capacity Storage Unit Weapon Light Assault Rifle Energy Gun EM Pulse Gun Ballistic Gun Light Assault Rifle Launcher Grenade Launcher Special Weapon Mining Laser Special Melee Weapon Datajack Build | -11 -10 -10 -10 ------- Run | Scr Mat Min Exi Slots Evolved . | . . . . Power . | . . . . Propulsion . | . . . . Utility . | . . . . Weapon . | . . . . Parts Attached 32 | . 13 8 11 Power 2 | . . 1 1 Engine 1 | . . . 1 Core 1 | . . 1 . Reactor . | . . . . Propulsion 6 | . 3 1 2 Treads 4 | . 3 1 . Leg 2 | . . . 2 Wheel . | . . . . Hover . | . . . . Flight . | . . . . Utility 8 | . 7 . 1 Device 1 | . 1 . . Storage 7 | . 6 . 1 Processor . | . . . . Hackware . | . . . . Protection . | . . . . Artifact . | . . . . Weapon 16 | . 3 6 7 Energy Gun 4 | . 1 2 1 Energy Cannon . | . . . . Ballistic Gun 8 | . 2 3 3 Ballistic Cannon . | . . . . Launcher 2 | . . 1 1 Special Weapon 1 | . . . 1 Impact Weapon . | . . . . Slashing Weapon . | . . . . Piercing Weapon . | . . . . Special Melee Weapon 1 | . . . 1 Unidentified Prototypes . | . . . . Parts Lost 13 | . 1 3 9 Power 1 | . . . 1 Propulsion 3 | . . 1 2 Utility . | . . . . Weapon 9 | . 1 2 6 Highest Loss Streak 9 | . 1 2 9 Average Slot Usage (%) 93 | . 98 91 88 Engine 11 | . 14 12 . Core 2 | . . 1 12 Treads 22 | . 27 25 . Leg 4 | . . . 25 Device 1 | . 3 . . Storage 24 | . 23 28 20 Energy Gun 8 | . 13 6 . Ballistic Gun 16 | . 14 15 25 Naked Turns . | . . . . Heaviest Build 87 | 11 73 75 87 Greatest Support 40 | 20 40 40 40 Greatest Overweight (x) 8 | . 1 3 8 Average Overweight (x) 1 | . . 1 3 Largest Inventory Capacity 24 | 6 20 20 24 Average Capacity 16 | 6 10 20 21 Most Carried 24 | 6 15 20 24 Average Carried 14 | 6 7 18 18 Final Capacity 24 | 6 20 20 24 Final Carried 20 | 6 15 20 17 Class Distribution -------------------- 65% | Hauler-Mutant 34% | Mutant Dominant Class ---------------- Mutant | -10/Materials Hauler-Mutant | -10/Mines Hauler-Mutant | -10/Exiles Resources | -11 -10 -10 -10 ----------- Run | Scr Mat Min Exi Matter Collected 633 | 200 188 185 60 Remotely . | . . . . Salvage Created 845 | 63 362 411 9 Parts 64 | 1 38 25 . Haulers Intercepted 1 | . 1 . . Recyclers Shooed . | . . . . Parts Field Recycled . | . . . . Retrieved Matter . | . . . . Parts Self-Destructed . | . . . . Prevented . | . . . . Kills | -11 -10 -10 -10 ------- Run | Scr Mat Min Exi Combat Hostiles Destroyed 27 | . 12 10 5 Guns 17 | . 7 7 3 AOE 10 | . 5 3 2 Classes Destroyed 8 | 1 5 1 1 Tunneler 1 | . . 1 . Hauler 1 | . 1 . . Recycler 2 | 1 . 1 . Operator 1 | . 1 . . Watcher 1 | . 1 . . Swarmer 12 | . 9 3 . Grunt 10 | . 3 7 . Assembled 5 | . . . 5 Best Kill Streak 6 | 1 6 4 5 Combat Bots Only 6 | . 6 4 5 Max Kills in Single Turn 3 | 1 3 2 1 Gunslinging . | . . . . Exploded 3 | . 3 2 1 Melee . | . . . . Uniques/NPCs Destroyed . | . . . . Combat | -11 -10 -10 -10 -------- Run | Scr Mat Min Exi Damage Taken 1930 | . 330 736 864 Core 259 | . 57 100 102 Absorbed by Shields . | . . . . Core Remaining (%) 100 | 100 . . . Volleys Fired 92 | 4 33 38 17 Largest 2 | 2 2 2 2 Hottest 100 | 60 60 95 100 Shots Fired 160 | 8 57 69 26 Gun 153 | 8 57 67 21 Cannon . | . . . . Launcher 5 | . . 2 3 Special 2 | . . . 2 Kinetic 104 | 4 33 49 18 Thermal 24 | 4 11 4 5 Explosive 5 | . . 2 3 Electromagnetic 27 | . 13 14 . Robot Hit Streak 10 | 8 9 10 3 Robot Miss Streak 5 | . 5 3 2 Penetration Max . | . . . . Secondary Targets 6 | . 3 2 1 Max Gunslinging Chain 1 | . 1 1 1 Shots Hit Robots 103 | 8 31 52 12 Core Hits 67 | 2 22 27 16 Critical Hits 1 | . . . 1 Critical Kills 1 | . . . 1 Critical Parts Destroyed . | . . . . Melee Attacks 1 | . . . 1 Impact . | . . . . Slashing . | . . . . Piercing . | . . . . Sneak Attacks . | . . . . Combat Hostiles . | . . . . Follow-up Attacks . | . . . . Damage Inflicted 1807 | 68 635 733 371 Guns 1103 | 68 411 531 93 Cannons . | . . . . Explosions 700 | . 224 202 274 Melee . | . . . . Ramming . | . . . . Kinetic 699 | 27 210 371 91 Thermal 241 | 41 164 30 6 Explosive 476 | . . 202 274 Electromagnetic 391 | . 261 130 . Impact . | . . . . Slashing . | . . . . Piercing . | . . . . Highest Corruption 1 | . 1 1 1 Average Corruption 1 | . 1 1 1 Corruption Purged . | . . . . Effects 9 | . 1 7 1 Message Errors 3 | . 1 2 . Data Loss (minor) 4 | . . 3 1 Targeting Errors 2 | . . 2 . Overload Shots . | . . . . Overflow Damage 40 | . . 28 12 Projectiles . | . . . . Explosions 40 | . . 28 12 Melee . | . . . . Knockbacks . | . . . . Impact . | . . . . Kinetic . | . . . . Secondary . | . . . . Self-Inflicted Damage 39 | . 39 . . Shots 1 | . 1 . . Rammed . | . . . . Targets Rammed . | . . . . Kicked . | . . . . Crushed . | . . . . Highest Temperature 129 | 20 20 129 43 Average Temperature 29 | 15 13 43 16 Received Heat Transfer 428 | . 30 378 20 Siege Activations . | . . . . Robots Corrupted . | . . . . Combat Hostiles . | . . . . Parts Fried . | . . . . Impact Corruptions . | . . . . Robots Melted . | . . . . Combat Hostiles . | . . . . Parts Melted . | . . . . Heat Transferred 416 | 100 200 74 42 Parts Sabotaged . | . . . . Parts Stolen . | . . . . Parts Stripped . | . . . . Power Chain Reactions 1 | . 1 . . Missiles Intercepted . | . . . . Alert | -11 -10 -10 -10 ------- Run | Scr Mat Min Exi Peak Influence 396 | 5 396 141 . Average Influence 143 | 1 222 68 . Maximum Alert Level 1 | . 1 . . Low Security (%) 72 | 100 43 100 . Level 1 27 | . 56 . . Level 2 . | . . . . Level 3 . | . . . . Level 4 . | . . . . Level 5 . | . . . . High Security . | . . . . Max Security . | . . . . Squads Dispatched 3 | . 3 . . Investigation 1 | . 1 . . Extermination . | . . . . Reinforcement 2 | . 2 . . Assault . | . . . . Garrison . | . . . . Intercept . | . . . . Construction Impeded . | . . . . Haulers Reinforced . | . . . . Stealth | -11 -10 -10 -10 --------- Run | Scr Mat Min Exi Distress Signals 3 | . 2 1 . Communications Jammed . | . . . . Distress Signals . | . . . . Times Spotted 50 | . 27 15 8 Peak Tracking Total 9 | . 7 4 9 Tactical Retreats 1 | . . 1 . Traps | -11 -10 -10 -10 ------- Run | Scr Mat Min Exi Traps Triggered 1 | . 1 . . Indirectly . | . . . . Trap Hack Attempts . | . . . . Triggered . | . . . . Disarmed 6 | . 6 . . Reprogrammed . | . . . . Reused . | . . . . Traps Extracted . | . . . . Installed . | . . . . Triggered . | . . . . Machines | -11 -10 -10 -10 ---------- Run | Scr Mat Min Exi Machines Disabled 6 | . 3 . 3 Max in Single Turn 2 | . 2 . 2 Machines Sabotaged . | . . . . Garrisons Compromised . | . . . . Overloaded Fab Kills . | . . . . Fab Network Shutdowns . | . . . . Hacking | -11 -10 -10 -10 --------- Run | Scr Mat Min Exi Machines Accessed 6 | . 6 . . Terminals 6 | . 6 . . Fabricators . | . . . . Repair Stations . | . . . . Recycling Units . | . . . . Scanalyzers . | . . . . Garrison Access . | . . . . Total Hacks 15 | . 15 . . Successful 13 | . 13 . . Failed 2 | . 2 . . Catastrophic 1 | . 1 . . Database Lockouts . | . . . . Manual 8 | . 8 . . Terminals 15 | . 15 . . Fabricators . | . . . . Repair Stations . | . . . . Recycling Units . | . . . . Scanalyzers . | . . . . Garrison Access . | . . . . Terminal Hacks 7 | . 7 . . Part Schematic 1 | . 1 . . Prototype ID Bank 1 | . 1 . . Branch Access Points 1 | . 1 . . Unreport Threat 1 | . 1 . . Locate Traps 1 | . 1 . . Disarm Traps 1 | . 1 . . Hauler Manifests 1 | . 1 . . Fabricator Hacks . | . . . . Repair Station Hacks . | . . . . Recycling Unit Hacks . | . . . . Scanalyzer . | . . . . Garrison Access Hacks . | . . . . Unauthorized Hacks 6 | . 6 . . Terminals 6 | . 6 . . Track 2 | . 2 . . Botnet 3 | . 3 . . Operators 1 | . 1 . . Fabricators . | . . . . Repair Stations . | . . . . Recycling Units . | . . . . Scanalyzers . | . . . . Garrison Access . | . . . . Data Cores Recovered . | . . . . Used . | . . . . Hacking Detections 2 | . 2 . . Full Trace Events 1 | . 1 . . Feedback Events . | . . . . Feedback Blocked . | . . . . Robot Schematics Acquired . | . . . . Robots Built . | . . . . Matter . | . . . . Time . | . . . . Total Robot Build Rating . | . . . . Part Schematics Acquired 1 | . 1 . . Parts Built . | . . . . Matter . | . . . . Time . | . . . . Total Part Build Rating . | . . . . Parts Repaired . | . . . . Time . | . . . . Parts Recycled . | . . . . Recycled Matter . | . . . . Retrieved Matter . | . . . . Retrieved Components . | . . . . Parts Scanalyzed . | . . . . Part Schematics Acquired . | . . . . Parts Damaged . | . . . . Bothacking | -11 -10 -10 -10 ------------ Run | Scr Mat Min Exi Used RIF Installer . | . . . . Robots Hacked 1 | . . . 1 Non-combat . | . . . . Combat 1 | . . . 1 Robot Hacks Applied 1 | . . . 1 parse_system 1 | . . . 1 Relay Couplers Released . | . . . . Robots Rewired . | . . . . Allies Hacked . | . . . . Hacks Repelled . | . . . . Allies | -11 -10 -10 -10 -------- Run | Scr Mat Min Exi Total Allies 1 | . . 1 . Largest Group 1 | . . 1 . Highest-Rated Group 31 | . . 31 . Highest-Rated Ally 31 | . . 31 . Total Orders . | . . . . Ally Attacks 8 | . . 8 . Total Damage 128 | . . 128 . Kills 3 | . . 3 . Allies Corrupted . | . . . . Allies Melted . | . . . . Intel | -11 -10 -10 -10 ------- Run | Scr Mat Min Exi Robot Analysis Total . | . . . . Derelict Logs Recovered 1 | . . 1 . Drone Launches . | . . . . Drone Recoveries . | . . . . Exploration | -11 -10 -10 -10 ------------- Run | Scr Mat Min Exi Turns Passed 2316 | 12 926 965 413 Spaces Moved 1083 | 1 483 449 150 Core . | . . . . Treads 927 | . 475 449 3 Legs 156 | 1 8 . 147 Wheels . | . . . . Hover . | . . . . Flight . | . . . . Fastest Speed 120 | 120 120 180 120 Average Speed 181 | 120 164 185 221 Slowest Speed 360 | 120 180 220 360 Overloaded Moves . | . . . . Propulsion Burnouts . | . . . . Robots Hopped . | . . . . Cave-ins Triggered . | . . . . Exploration Rate (%) 53 | 2 94 88 28 Regions Visited 3 Branch Regions 2 Pre-discovered Areas . | . . . . Known Exits Taken 1 | . 1 . . Unknown Exits Taken 2 | 1 . 1 . Scrap Searched 2 | . . 2 . Spaces Dug . | . . . . Terrain Destroyed 20 | . 2 17 1 Melee . | . . . . Projectile . | . . . . AOE 20 | . 2 17 1 Actions | -11 -10 -10 -10 --------- Run | Scr Mat Min Exi Total 1291 | 4 561 516 210 Wait 27 | . 16 11 . Move 1080 | . 482 448 150 Hop . | . . . . Pick Up 40 | . 9 8 23 Fast Attach 4 | . 2 1 1 Attach 16 | . 3 4 9 Detach 2 | . 1 1 . Swap 12 | . 8 3 1 Drop 17 | . 7 2 8 Fire 92 | 4 33 38 17 Melee 1 | . . . 1 Ram . | . . . . Kick . | . . . . Crush . | . . . . Escape Stasis . | . . . . Rewire . | . . . . Trap . | . . . . Miscellaneous . | . . . . Route ------- -11/Scrapyard -10/Materials (discovered 5 exits: [*Mat x3] / *Min x2) -10/Mines (discovered 3 exits: [*Mat x2] / [*Exi]) -10/Exiles History --------- Turn | Location | Event 13 | -11/Scrapyard | Discovered new exit (range 0) 13 | -11/Scrapyard | Entered Materials 13 | -10/Materials | Discovered new exit (range 8) 301 | -10/Materials | Build established: Mutant 373 | -10/Materials | Discovered new exit (range 5) 517 | -10/Materials | Discovered new exit (range 3) 580 | -10/Materials | Identified exit to Mines 629 | -10/Materials | Discovered new exit (range 7) 939 | -10/Materials | Entered Mines 978 | -10/Mines | Learned 2 Materials zone layouts 1101 | -10/Mines | Build established: Hauler-Mutant 1226 | -10/Mines | Discovered new exit (range 6) 1238 | -10/Mines | Received a Mining Laser from a helpful Derelict 1773 | -10/Mines | Core integrity fell below 50% 1844 | -10/Mines | Discovered new exit (range 6) 1895 | -10/Mines | Deemed a non-threat by the Exiles lab entrance 1896 | -10/Mines | Discovered new exit (range 5) 1904 | -10/Mines | Entered Exiles 1967 | -10/Exiles | Met 8R-AWN 2000 | -10/Exiles | Met EX-HEX 2263 | -10/Exiles | Attacked by the Exiles 2282 | -10/Exiles | Core integrity fell below 20% 2317 | -10/Exiles | Destroyed by 8R-AWN with 8R-AWN's Boregun Last Messages --------------- New IDs: Adv. Myomer Leg Gravity Neutralizing Apparatus Exp. Heat Sink 8R-AWN's Armor/TH 8R-AWN's Armor/EX AS-neutralizer No. 17b Exp. Targeting Computer 8R-AWN's Boregun 02311_ Penetrated by HV Slug. 02311_ HV Slug penetrates Wall. 02311_ Penetrated by HV Slug. 02311_ HV Slug penetrates Wall. 02315_ Penetrated by HV Slug. 02315_ HV Slug penetrates Wall. 02315_ Penetrated by HV Slug. 02315_ HV Slug penetrates Wall. 02317_ Penetrated by HV Slug. 02317_ HV Slug penetrates Wall. 02317_ Penetrated by HV Slug. Map ----- +----------------------------------------------------+ | ?????????????????????????????????????????????????? | | ?????????????????????????????????????????????????? | | ?????????????????????????????????????????????????? | | ?????????????????????????????????????????????????? | | ?????????????????????????????????????????????????? | | ?????????????????????????????????????????????????? | | ?????????????????????????????????????????????????? | | ?????????????????????????????????????????????????? | | ?????????????????????????????????????????????????? | | ?????????????????????????????????????????????????? | | ?????????????????????????????????????????????????? | | ?????????????????????????????????????????????????? | | ?????????????????????????????????????????????????? | | ???????????? ????????????????????????????????????? | | ????????????? ???????????????????????????????????? | | ?????????????# #?????????????????????????????????? | | ???????????####;#####????????????????????????????? | | ???????#####""" """"##??????????????????????????? | | ????? " "" """"##?????????????????????????? | | ???? " " #?????????????????????????? | | ??? """####??????????????????????? | | ??? a"## #????????#####?????????? | | ??? " #; #???????##" #?????????? | | ??? #;#???????#" #?????????? | | ???? #??????##" ##????????? | | ????? % @#????### ###??????? | | ??????""" a ##???# ######## | | ??????#""" g ##?## #""""## | | ??????#"""" ### / | | ?????##"" ## | | ??####"""" #### | | ###""" ""#?#"""""#### | | """" #"""##?#######??#### | | ######??????????????# | | ##???????????????????? | | " % ##????????????????????? | | "" """ * * * #?????????????????????? | | # ##""" " " ""# % ##?????????????????????? | | # ######""" """##""" """# ??????????????????????? | | # #????###""""############??????????????????????? | | # ####???######?????????????????????????????????? | | " #??????????????????????????????????????????? | | " #??????????????????????????????????????????? | | " "#??????????????????????????????????????????? | | "" "#??????????????????????????????????????????? | | #######??????????????????????????????????????????? | | ?????????????????????????????????????????????????? | | ?????????????????????????????????????????????????? | | ?????????????????????????????????????????????????? | | ?????????????????????????????????????????????????? | +----------------------------------------------------+ Best States ------------- Heat Dissipation 25 Energy Generation 14 Energy Capacity 250 Matter Stores 300 Matter Capacity 300 Sight Range 16 Terrain Scan Density 10 Evasion (%) 40 Recoil Reduction 2 Item Schematics ----------------- Hcp. Storage Unit | -10/Materials | Hacked Robot Schematics ------------------ None Fabricated ------------ Nothing Alien Tech Used ----------------- None Achievements -------------- None Challenges ------------ None Game ------ Seed AccelerationKineticTorch Manual? 0 Play Time 00:17:00 Cumulative 216.9 hours Start 2020.06.02 @ 22:36:48 End 2020.06.02 @ 22:50:12 Sessions 1 Manual Loads 0 Difficulty Rogue Special Mode None Game No. 284 Rogue 273 Adventurer 11 Explorer 0 Win Type - Total 0 Types 0/0/0/0/0/0/0 Lore% 52 Gallery% 66 Achievement% 45 Wizard Run 0 Options --------- ASCII 0 Keyboard 1 Movement Numpad Keybinds 0 Fullscreen 1 Font 12/Terminus Map View 83x54 Tactical HUD 1 Map Filters NONE Filters NONE Steam 1 RUN: 6b63c710-f588-4fe6-8fad-957bd326dfd9